bitfinex-derivatives/quotes_BTCF0:USTF0_20250630
["timestamp","ask_amount","ask_price","bid_price","bid_amount"]
[1751315627384,0.52588098,107690.0,107680.0,0.9836882]
[1751315628284,0.52588098,107690.0,107680.0,0.74649792]
[1751315628585,0.52588098,107690.0,107680.0,0.9836882]
[1751315631592,0.2886907,107690.0,107680.0,0.9836882]
[1751315631782,0.52588098,107690.0,107680.0,0.9836882]
[1751315633284,0.52588098,107690.0,107680.0,0.6228882]
[1751315633488,0.52588098,107690.0,107680.0,0.9836882]
[1751315636285,0.52588098,107690.0,107680.0,0.74649792]
[1751315636487,0.52588098,107690.0,107680.0,0.9836882]
[1751315637191,0.52588098,107690.0,107680.0,1.02075421]
[1751315640298,0.52588098,107690.0,107680.0,0.78356393]
[1751315640492,0.52588098,107690.0,107680.0,1.02075421]
[1751315644798,0.52588098,107690.0,107680.0,0.75046393]
[1751315644999,0.61868098,107690.0,107680.0,0.71816393]
[1751315648400,0.3814907,107690.0,107680.0,0.95535421]
[1751315648592,0.61868098,107690.0,107680.0,0.95535421]
[1751315649103,0.3814907,107690.0,107680.0,0.95535421]
[1751315649397,0.61868098,107690.0,107680.0,0.95535421]
[1751315653505,0.3814907,107690.0,107680.0,0.95535421]
[1751315653698,0.61868098,107690.0,107680.0,0.98655421]
[1751315653897,0.61868098,107690.0,107680.0,1.01695421]
[1751315656504,0.45768098,107690.0,107680.0,1.01695421]
[1751315657404,0.45768098,107690.0,107680.0,1.0447119]
[1751315657904,0.27199028,107690.0,107680.0,1.0447119]
[1751315658203,0.27199028,107690.0,107680.0,1.0169124]
[1751315658605,0.27199028,107690.0,107680.0,1.044732]
[1751315658904,0.27199028,107690.0,107680.0,0.80754172]
[1751315659103,0.24019028,107690.0,107680.0,1.64192228]
[1751315660507,0.24019028,107690.0,107680.0,0.80754172]
[1751315660707,0.24019028,107690.0,107680.0,1.61410268]
[1751315660899,0.003,107690.0,107680.0,0.77972212]
[1751315661106,0.003,107690.0,107680.0,1.374736]
[1751315661302,0.24019028,107690.0,107680.0,1.61192628]
[1751315662108,0.24019028,107690.0,107680.0,1.374736]
[1751315663210,0.24019028,107690.0,107680.0,1.3469124]
[1751315663812,0.24019028,107690.0,107680.0,1.0169124]
[1751315667513,0.24019028,107690.0,107680.0,0.77972212]
[1751315667712,0.24019028,107690.0,107680.0,1.04214431]
[1751315667911,0.33699028,107690.0,107680.0,0.9865124]
[1751315668612,0.0998,107690.0,107680.0,0.9865124]
[1751315669012,0.43699028,107690.0,107680.0,0.9865124]
[1751315671614,0.43699028,107690.0,107680.0,1.01433223]
[1751315671815,0.43699028,107690.0,107680.0,0.9865124]
[1751315672224,0.43699028,107690.0,107680.0,1.04443199]
[1751315672622,0.43699028,107690.0,107680.0,0.80724171]
[1751315672826,0.43699028,107690.0,107680.0,1.04443199]
[1751315675329,0.43699028,107690.0,107680.0,0.80724171]
[1751315675626,0.43699028,107690.0,107680.0,1.04443199]
[1751315677023,0.24019028,107690.0,107680.0,1.04443199]
[1751315677226,6.55551889,107700.0,107690.0,0.1856907]
[1751315677426,6.5,107700.0,107690.0,1.25525826]
[1751315677626,6.5,107700.0,107690.0,1.82547472]
[1751315678322,6.5,107700.0,107690.0,1.50547472]
[1751315678520,6.5,107700.0,107690.0,1.88547472]
[1751315678934,6.5,107700.0,107690.0,1.92254073]
[1751315679430,6.503,107700.0,107690.0,1.92254073]
[1751315679630,6.503,107700.0,107690.0,1.89472114]
[1751315680335,6.503,107700.0,107690.0,1.9224949]
[1751315682133,6.503,107700.0,107690.0,1.68530462]
[1751315682334,6.503,107700.0,107690.0,1.9224949]
[1751315683532,6.503,107700.0,107690.0,1.89473721]
[1751315685433,6.503,107700.0,107690.0,2.13192749]
[1751315686638,6.503,107700.0,107690.0,1.89473721]
[1751315687438,6.503,107700.0,107690.0,1.95031932]
[1751315687836,6.503,107700.0,107690.0,1.91325331]
[1751315688240,6.503,107700.0,107690.0,1.95024032]
[1751315693243,6.503,107700.0,107690.0,2.31104032]
[1751315697246,6.503,107700.0,107690.0,2.27405331]
[1751315699348,6.503,107700.0,107690.0,2.2884238]
[1751315699541,6.503,107700.0,107690.0,1.5668238]
[1751315699749,6.503,107700.0,107690.0,2.2884238]
[1751315701347,6.503,107700.0,107690.0,2.28892026]
[1751315702552,6.503,107700.0,107690.0,2.27454977]
[1751315703351,6.503,107700.0,107690.0,1.65735949]
[1751315703650,6.5355,107700.0,107690.0,2.22454977]
[1751315703850,6.5676,107700.0,107690.0,2.22454977]
[1751315704351,6.599,107700.0,107690.0,2.22454977]
[1751315704552,6.599,107700.0,107690.0,2.26454977]
[1751315705545,6.83619028,107700.0,107690.0,1.22882977]
[1751315705742,6.83619028,107700.0,107690.0,2.15814977]
[1751315705942,6.83619028,107700.0,107690.0,2.17254362]
[1751315706152,6.83619028,107700.0,107690.0,1.81254362]
[1751315706947,6.83619028,107700.0,107690.0,2.16254362]
[1751315707450,6.83619028,107700.0,107690.0,2.10691171]
[1751315707649,6.599,107700.0,107690.0,2.10691171]
[1751315708155,6.599,107700.0,107690.0,2.18108759]
[1751315712657,6.599,107700.0,107690.0,1.94389731]
[1751315712960,6.599,107700.0,107690.0,2.18108759]
[1751315714355,6.599,107700.0,107690.0,2.16251665]
[1751315715258,6.599,107700.0,107690.0,2.10691171]
[1751315715462,6.599,107700.0,107690.0,1.86972143]
[1751315715646,6.599,107700.0,107690.0,2.10691171]
[1751315716457,6.599,107700.0,107690.0,1.75691171]
[1751315717055,6.599,107700.0,107690.0,1.81251713]
[1751315718263,6.83619028,107700.0,107690.0,1.81251713]
[1751315719358,6.599,107700.0,107690.0,1.81251713]
[1751315719557,6.83619028,107700.0,107690.0,1.81251713]
[1751315720264,6.599,107700.0,107690.0,1.81251713]
[1751315721260,6.599,107700.0,107690.0,1.57532685]
[1751315721460,6.599,107700.0,107690.0,2.14251713]
[1751315727266,6.599,107700.0,107690.0,2.16108759]
[1751315727667,6.599,107700.0,107690.0,2.19268759]
[1751315728967,6.599,107700.0,107690.0,2.22498759]
[1751315731270,6.599,107700.0,107690.0,1.65566759]
[1751315731472,6.599,107700.0,107690.0,2.22470759]
[1751315734064,6.597,107700.0,107690.0,2.22470759]
[1751315734875,6.597,107700.0,107690.0,2.19698363]
[1751315735171,6.597,107700.0,107690.0,2.12280775]
[1751315736670,6.599,107700.0,107690.0,2.13680775]
[1751315737668,6.599,107700.0,107690.0,2.23940382]
[1751315738476,6.599,107700.0,107690.0,2.27160382]
[1751315738874,6.599,107700.0,107690.0,1.55000382]
[1751315739076,6.599,107700.0,107690.0,2.27160382]
[1751315742082,6.599,107700.0,107690.0,2.03441354]
[1751315742282,6.599,107700.0,107690.0,2.27160382]
[1751315743881,6.599,107700.0,107690.0,2.19742269]
[1751315744080,6.599,107700.0,107690.0,2.21742269]
[1751315747087,6.599,107700.0,107690.0,2.29160382]
[1751315752295,6.599,107700.0,107690.0,1.57000382]
[1751315752489,6.599,107700.0,107690.0,2.29160382]
[1751315753091,6.09992606,107700.0,107690.0,2.45461297]
[1751315753292,5.67837826,107700.0,107690.0,2.97036104]
[1751315753495,5.47212826,107700.0,107690.0,2.73317076]
[1751315753688,5.39878476,107700.0,107690.0,2.73317076]
[1751315753885,5.25054606,107700.0,107690.0,2.73317076]
[1751315754294,5.10961276,107700.0,107690.0,2.71556731]
[1751315754590,5.03618476,107700.0,107690.0,2.71556731]
[1751315755194,4.98422396,107700.0,107690.0,2.71556731]
[1751315755500,4.98222396,107700.0,107690.0,2.72356731]
[1751315757898,4.98222396,107700.0,107690.0,2.73445117]
[1751315758895,4.98222396,107700.0,107690.0,2.71993794]
[1751315759598,4.98222396,107700.0,107690.0,2.64581498]
[1751315762197,4.98222396,107700.0,107690.0,2.71985471]
[1751315762599,4.92765956,107700.0,107690.0,2.53414271]
[1751315763706,4.87339426,107700.0,107690.0,2.53414271]
[1751315763905,4.79972556,107700.0,107690.0,2.53414271]
[1751315764305,4.79972556,107700.0,107690.0,2.46010298]
[1751315764598,4.79972556,107700.0,107690.0,2.55282939]
[1751315764910,4.72757696,107700.0,107690.0,2.46010298]
[1751315766108,4.72757696,107700.0,107690.0,2.46110298]
[1751315766911,4.72757696,107700.0,107690.0,2.55382939]
[1751315767511,4.72757696,107700.0,107690.0,1.98478939]
[1751315767697,4.72757696,107700.0,107690.0,2.79130939]
[1751315768407,4.72757696,107700.0,107690.0,2.80824216]
[1751315768607,4.72757696,107700.0,107690.0,2.7973583]
[1751315769004,4.72757696,107700.0,107690.0,2.87137099]
[1751315769205,4.72757696,107700.0,107690.0,2.77864458]
[1751315772811,4.72757696,107700.0,107690.0,2.70463189]
[1751315773212,4.72757696,107700.0,107690.0,2.7973583]
[1751315773911,4.72757696,107700.0,107690.0,2.70463189]
[1751315775413,4.72757696,107700.0,107690.0,2.7973583]
[1751315775611,4.76047696,107700.0,107690.0,2.7973583]
[1751315776110,4.76047696,107700.0,107690.0,2.80824186]
[1751315776310,4.79307696,107700.0,107690.0,2.80824186]
[1751315778015,4.79307696,107700.0,107690.0,1.90562186]
[1751315778314,4.79307696,107700.0,107690.0,2.71194186]
[1751315778509,4.82357696,107700.0,107690.0,2.71194186]
[1751315780516,4.82357696,107700.0,107690.0,1.66843158]
[1751315780717,4.73999124,107700.0,107690.0,2.47471158]
[1751315782717,4.73999124,107700.0,107690.0,1.66843158]
[1751315782918,4.73999124,107700.0,107690.0,2.47471158]
[1751315784718,4.73999124,107700.0,107690.0,2.71190186]
[1751315785514,4.73999124,107700.0,107690.0,2.61917545]
[1751315789132,4.73999124,107700.0,107690.0,2.67479769]
[1751315793725,4.73999124,107700.0,107690.0,2.43760741]
[1751315794829,4.73999124,107700.0,107690.0,2.67479769]
[1751315795330,4.73999124,107700.0,107690.0,2.71190186]
[1751315795723,4.73999124,107700.0,107690.0,2.47471158]
[1751315796428,4.73999124,107700.0,107690.0,2.71190186]
[1751315797123,4.73999124,107700.0,107690.0,2.61917545]
[1751315799030,4.73999124,107700.0,107690.0,2.69331792]
[1751315799231,4.73999124,107700.0,107690.0,2.61917545]
[1751315802736,4.73999124,107700.0,107690.0,2.69331632]
[1751315807132,4.73999124,107700.0,107690.0,2.69319632]
[1751315809341,4.73999124,107700.0,107690.0,2.72499632]
[1751315812546,4.73999124,107700.0,107690.0,2.74358186]
[1751315822648,4.73999124,107700.0,107690.0,1.70023158]
[1751315822844,4.73999124,107700.0,107690.0,2.71170186]
[1751315827664,4.73999124,107700.0,107690.0,2.7008183]
[1751315828359,4.73999124,107700.0,107690.0,2.60809189]
[1751315828564,4.73999124,107700.0,107690.0,2.7008183]
[1751315829263,4.73999124,107700.0,107690.0,2.44443083]
[1751315829966,4.73999124,107700.0,107690.0,1.87615083]
[1751315830163,4.73999124,107700.0,107690.0,2.44443083]
[1751315830861,4.73999124,107700.0,107690.0,1.87615083]
[1751315831063,4.73999124,107700.0,107690.0,2.44443083]
[1751315831561,4.73999124,107700.0,107690.0,2.44439083]
[1751315839169,4.73999124,107700.0,107690.0,2.37025189]
[1751315839771,4.73999124,107700.0,107690.0,1.80201189]
[1751315839974,4.73999124,107700.0,107690.0,2.13302161]
[1751315840167,4.73999124,107700.0,107690.0,2.37021189]
[1751315843466,4.73999124,107700.0,107690.0,1.80201189]
[1751315843671,4.73999124,107700.0,107690.0,2.37021189]
[1751315844178,4.73999124,107700.0,107690.0,2.13302161]
[1751315844472,4.73999124,107700.0,107690.0,1.89583133]
[1751315844672,4.73999124,107700.0,107690.0,2.37021189]
[1751315844875,4.73999124,107700.0,107690.0,2.13302161]
[1751315845274,4.73999124,107700.0,107690.0,2.37021189]
[1751315846784,4.73999124,107700.0,107690.0,2.44434737]
[1751315847276,4.73999124,107700.0,107690.0,2.50754737]
[1751315848769,4.64399124,107700.0,107690.0,2.53894737]
[1751315850073,4.64399124,107700.0,107690.0,2.46481189]
[1751315850380,4.64399124,107700.0,107690.0,2.5575383]
[1751315856187,4.64399124,107700.0,107690.0,2.46481189]
[1751315858288,4.64399124,107700.0,107690.0,2.5575383]
[1751315860990,4.67679124,107700.0,107690.0,2.46481189]
[1751315861183,4.70839124,107700.0,107690.0,2.46481189]
[1751315861383,4.74169124,107700.0,107690.0,2.46481189]
[1751315862384,4.74169124,107700.0,107690.0,1.89661189]
[1751315862588,4.74169124,107700.0,107690.0,2.37009189]
[1751315865290,4.74169124,107700.0,107690.0,1.80201189]
[1751315865490,4.74169124,107700.0,107690.0,2.13286161]
[1751315867791,4.74169124,107700.0,107690.0,2.37005189]
[1751315868192,4.74169124,107700.0,107690.0,2.13286161]
[1751315868689,4.74169124,107700.0,107690.0,2.37005189]
[1751315872594,4.74169124,107700.0,107690.0,2.44418438]
[1751315874592,4.74169124,107700.0,107690.0,1.96980382]
[1751315874794,4.74169124,107700.0,107690.0,2.44418438]
[1751315874994,4.74169124,107700.0,107690.0,2.2069941]
[1751315878095,4.74169124,107700.0,107690.0,2.14374649]
[1751315879296,4.74169124,107700.0,107690.0,2.21782115]
[1751315881197,4.74169124,107700.0,107690.0,1.64978115]
[1751315881396,4.74169124,107700.0,107690.0,2.21774115]
[1751315882296,4.74169124,107700.0,107690.0,1.64978115]
[1751315882496,4.74169124,107700.0,107690.0,2.21770115]
[1751315882697,4.74169124,107700.0,107690.0,2.20681627]
[1751315883103,4.74169124,107700.0,107690.0,1.63889627]
[1751315883304,4.74169124,107700.0,107690.0,2.20681627]
[1751315884302,4.74169124,107700.0,107690.0,2.43637545]
[1751315884502,4.74169124,107700.0,107690.0,1.90085545]
[1751315884801,4.74169124,107700.0,107690.0,2.49997545]
[1751315885201,4.74169124,107700.0,107690.0,1.93205545]
[1751315885403,4.74169124,107700.0,107690.0,2.49997545]
[1751315886905,4.74169124,107700.0,107690.0,1.77837545]
[1751315887104,4.74169124,107700.0,107690.0,2.49997545]
[1751315887906,4.74169124,107700.0,107690.0,2.50760655]
[1751315889107,4.74169124,107700.0,107690.0,2.43353189]
[1751315889407,4.74169124,107700.0,107690.0,2.5262583]
[1751315890906,4.74169124,107700.0,107690.0,2.52588802]
[1751315891703,4.74169124,107700.0,107690.0,2.61087035]
[1751315891901,4.74169124,107700.0,107690.0,2.51814394]
[1751315897211,4.74169124,107700.0,107690.0,1.79654394]
[1751315897412,4.74169124,107700.0,107690.0,2.51814394]
[1751315897612,4.74169124,107700.0,107690.0,2.55024394]
[1751315898006,4.74169124,107700.0,107690.0,2.47614646]
[1751315898402,4.74169124,107700.0,107690.0,2.56887287]
[1751315899708,4.74169124,107700.0,107690.0,2.55798802]
[1751315900113,4.74169124,107700.0,107690.0,2.56887287]
[1751315900313,4.74169124,107700.0,107690.0,2.33168259]
[1751315902410,4.74169124,107700.0,107690.0,2.56887287]
[1751315905715,4.74169124,107700.0,107690.0,2.33168259]
[1751315907412,5.16455492,107700.0,107690.0,1.27758161]
[1751315907613,6.0694652,107700.0,107690.0,0.59486929]
[1751315907814,7.2006816,107700.0,107690.0,0.1275068]
[1751315908025,0.1856906,107690.0,107680.0,0.13050299]
[1751315908214,1.36035116,107690.0,107680.0,0.17846818]
[1751315908414,1.54607916,107690.0,107680.0,0.13974252]
[1751315908624,1.30888888,107690.0,107680.0,0.13974252]
[1751315908823,1.31832288,107690.0,107680.0,0.13974252]
[1751315909013,1.31832288,107690.0,107680.0,0.28837221]
[1751315909214,1.31832288,107690.0,107680.0,0.29237221]
[1751315909715,1.32032288,107690.0,107680.0,0.30737221]
[1751315911521,1.35192288,107690.0,107680.0,0.2796056]
[1751315912524,1.34248888,107690.0,107680.0,0.2796056]
[1751315912824,1.1052986,107690.0,107680.0,0.2796056]
[1751315913019,1.34248888,107690.0,107680.0,0.2796056]
[1751315916628,1.15676088,107690.0,107680.0,0.2796056]
[1751315920034,1.15676088,107690.0,107680.0,0.30767741]
[1751315923431,1.15676088,107690.0,107680.0,0.66847741]
[1751315923636,0.002,107690.0,107680.0,1.41285797]
[1751315923930,0.002,107690.0,107680.0,1.20765797]
[1751315924136,0.002,107690.0,107680.0,1.54765797]
[1751315924529,0.002,107690.0,107680.0,1.23542458]
[1751315924930,0.002,107690.0,107680.0,1.58542458]
[1751315927439,0.002,107690.0,107680.0,2.15314458]
[1751315929138,0.002,107690.0,107680.0,2.19022279]
[1751315929737,0.1876906,107690.0,107680.0,2.19022279]
[1751315930036,0.1876906,107690.0,107680.0,1.71584223]
[1751315930241,0.42488088,107690.0,107680.0,1.71584223]
[1751315930541,0.42488088,107690.0,107680.0,1.9159543]
[1751315931540,0.42488088,107690.0,107680.0,1.71584223]
[1751315931840,0.42488088,107690.0,107680.0,1.95303251]
[1751315932038,0.42488088,107690.0,107680.0,1.38531251]
[1751315932241,0.52488088,107690.0,107680.0,1.00500223]
[1751315932436,0.55758088,107690.0,107680.0,0.96792402]
[1751315933743,0.55758088,107690.0,107680.0,1.2051143]
[1751315934142,0.55758088,107690.0,107680.0,0.6374343]
[1751315935342,0.55758088,107690.0,107680.0,0.40024402]
[1751315936343,0.55758088,107690.0,107680.0,0.43732223]
[1751315940549,0.55758088,107690.0,107680.0,0.67451251]
[1751315947554,0.45758088,107690.0,107680.0,0.67451251]
[1751315950457,0.45758088,107690.0,107680.0,0.6467459]
[1751315950651,0.45758088,107690.0,107680.0,0.6768459]
[1751315951252,0.45758088,107690.0,107680.0,1.0376459]
[1751315951453,0.002,107690.0,107680.0,1.62021953]
[1751315951653,0.002,107690.0,107680.0,1.33021953]
[1751315952458,0.002,107690.0,107680.0,1.66021953]
[1751315952658,0.002,107690.0,107680.0,1.33021953]
[1751315953161,0.1876906,107690.0,107680.0,1.33021953]
[1751315953760,0.002,107690.0,107680.0,1.60021953]
[1751315953960,0.1876906,107690.0,107680.0,1.60021953]
[1751315954254,0.1876906,107690.0,107680.0,1.33021953]
[1751315955449,0.1876906,107690.0,107680.0,1.29314132]
[1751315956563,0.002,107690.0,107680.0,1.29314132]
[1751315956754,0.1876906,107690.0,107680.0,1.29314132]
[1751315960957,0.1876906,107690.0,107680.0,1.05595104]
[1751315961664,0.42488088,107690.0,107680.0,1.05595104]
[1751315962961,0.42488088,107690.0,107680.0,0.81876076]
[1751315963162,0.42488088,107690.0,107680.0,1.05595104]
[1751315963570,0.42488088,107690.0,107680.0,1.02787923]
[1751315963863,0.42488088,107690.0,107680.0,0.97249588]
[1751315965062,0.42488088,107690.0,107680.0,0.7353056]
[1751315965256,0.42488088,107690.0,107680.0,0.97249588]
[1751315965657,0.42488088,107690.0,107680.0,0.61169588]
[1751315965865,0.42488088,107690.0,107680.0,0.97249588]
[1751315970466,0.42488088,107690.0,107680.0,1.20968616]
[1751315972267,0.42488088,107690.0,107680.0,0.97249588]
[1751315973474,0.42488088,107690.0,107680.0,1.20968616]
[1751315974179,0.23919028,107690.0,107680.0,1.33021604]
[1751315974969,0.23919028,107690.0,107680.0,0.96941604]
[1751315975173,0.23919028,107690.0,107680.0,1.33021604]
[1751315975773,0.23919028,107690.0,107680.0,1.09302576]
[1751315976576,0.002,107690.0,107680.0,1.33021604]
[1751315976776,0.23919028,107690.0,107680.0,1.33021604]
[1751315978176,0.23919028,107690.0,107680.0,1.09302576]
[1751315979379,0.23919028,107690.0,107680.0,1.05594175]
[1751315980578,0.23919028,107690.0,107680.0,0.69514175]
[1751315980780,0.23919028,107690.0,107680.0,1.05594175]
[1751315982678,0.23919028,107690.0,107680.0,1.29313203]
[1751315983581,0.23919028,107690.0,107680.0,1.29285388]
[1751315983981,0.23919028,107690.0,107680.0,0.93205388]
[1751315984281,0.23919028,107690.0,107680.0,1.29285388]
[1751315985683,0.42488088,107690.0,107680.0,1.29285388]
[1751315985884,0.23919028,107690.0,107680.0,1.29285388]
[1751315987684,0.23919028,107690.0,107680.0,1.0556636]
[1751315988084,0.23919028,107690.0,107680.0,0.6948636]
[1751315988284,0.23919028,107690.0,107680.0,1.0556636]
[1751315990785,0.23919028,107690.0,107680.0,0.81847332]
[1751315990984,0.23919028,107690.0,107680.0,1.29285388]
[1751315994589,0.42488088,107690.0,107680.0,1.0556636]
[1751315996993,0.42488088,107690.0,107680.0,0.81847332]
[1751315997292,0.42488088,107690.0,107680.0,1.0556636]
[1751315997792,0.23919028,107690.0,107680.0,1.0556636]
[1751315998392,0.42488088,107690.0,107680.0,1.0556636]
[1751316000696,0.42488088,107690.0,107680.0,1.6227836]
[1751316004398,0.1876906,107690.0,107680.0,1.6227836]
[1751316004598,0.42488088,107690.0,107680.0,1.6227836]
[1751316004795,0.45788088,107690.0,107680.0,1.6227836]
[1751316005697,0.2206906,107690.0,107680.0,1.6227836]
[1751316005900,0.45788088,107690.0,107680.0,1.6227836]
[1751316006706,0.45788088,107690.0,107680.0,1.63718844]
[1751316007305,0.45788088,107690.0,107680.0,1.6227836]
[1751316008104,0.45788088,107690.0,107680.0,1.0556636]
[1751316008305,0.45788088,107690.0,107680.0,1.6227036]
[1751316009105,0.45788088,107690.0,107680.0,1.65981242]
[1751316009307,0.45788088,107690.0,107680.0,1.09277242]
[1751316009499,0.45788088,107690.0,107680.0,1.65981242]
[1751316009807,0.55788088,107690.0,107680.0,0.82328214]
[1751316010105,0.58978088,107690.0,107680.0,0.34425612]
[1751316010305,0.62238088,107690.0,107680.0,0.34425612]
[1751316010513,0.62238088,107690.0,107680.0,0.37209187]
[1751316010806,0.62238088,107690.0,107680.0,0.37209281]
[1751316016207,0.63174783,107690.0,107680.0,0.37209281]
[1751316020108,0.63174783,107690.0,107680.0,0.40309281]
[1751316020710,0.62238088,107690.0,107680.0,0.40309281]
[1751316021007,0.62238088,107690.0,107680.0,0.43409281]
[1751316022712,0.58978088,107690.0,107680.0,0.43409281]
[1751316022909,0.55788088,107690.0,107680.0,0.43409281]
[1751316023812,0.56723207,107690.0,107680.0,0.43409281]
[1751316024509,0.55788088,107690.0,107680.0,0.43409281]
[1751316024914,0.55788088,107690.0,107680.0,0.44854847]
[1751316025114,0.55788088,107690.0,107680.0,0.43409281]
[1751316028613,0.55788088,107690.0,107680.0,0.46459281]
[1751316028818,0.55788088,107690.0,107680.0,0.70178309]
[1751316029520,0.3206906,107690.0,107680.0,0.70178309]
[1751316029818,0.55788088,107690.0,107680.0,0.70178309]
[1751316031220,0.3206906,107690.0,107680.0,0.70178309]
[1751316031517,0.55788088,107690.0,107680.0,0.70178309]
[1751316032317,0.3206906,107690.0,107680.0,0.70178309]
[1751316032519,0.99172088,107690.0,107680.0,0.70178309]
[1751316032708,0.7545306,107690.0,107680.0,0.70178309]
[1751316033018,0.99172088,107690.0,107680.0,0.70178309]
[1751316034122,0.99172088,107690.0,107680.0,0.6739464]
[1751316034921,0.7545306,107690.0,107680.0,0.6739464]
[1751316035121,0.99172088,107690.0,107680.0,0.6739464]
[1751316037124,0.99172088,107690.0,107680.0,0.72957242]
[1751316040120,0.99168088,107690.0,107680.0,1.09037242]
[1751316040423,0.99168088,107690.0,107680.0,1.10488906]
[1751316041022,0.99168088,107690.0,107680.0,1.06778024]
[1751316041320,0.99168088,107690.0,107680.0,1.10487651]
[1751316041720,0.1876906,107690.0,107680.0,1.34206679]
[1751316046730,0.1876906,107690.0,107680.0,1.10487651]
[1751316047129,0.42488088,107690.0,107680.0,1.10487651]
[1751316050332,0.42488088,107690.0,107680.0,0.86768623]
[1751316050534,0.52488088,107690.0,107680.0,0.86768613]
[1751316050733,0.52488088,107690.0,107680.0,0.78156011]
[1751316050933,0.3198906,107690.0,107680.0,0.78156011]
[1751316051133,0.55708088,107690.0,107680.0,0.78156011]
[1751316051433,0.55708088,107690.0,107680.0,0.7815383]
[1751316059348,0.55708088,107690.0,107680.0,0.80935655]
[1751316060444,0.55708088,107690.0,107680.0,0.79486172]
[1751316067755,0.55708088,107690.0,107680.0,0.43406172]
[1751316069152,0.55708088,107690.0,107680.0,0.46186949]
[1751316077968,0.55708088,107690.0,107680.0,0.20154214]
[1751316078165,1.21967116,107690.0,107680.0,0.11174029]
[1751316078367,1.32487244,107690.0,107680.0,0.07464402]
[1751316080473,1.32487244,107690.0,107680.0,0.04681985]
[1751316080874,1.38058206,107690.0,107680.0,0.04681985]
[1751316081273,1.32487244,107690.0,107680.0,0.04681985]
[1751316082675,1.51060044,107690.0,107680.0,0.04681985]
[1751316084473,0.2857078,107680.0,107670.0,0.09132417]
[1751316084667,1.71950836,107680.0,107670.0,0.09132417]
[1751316085273,1.71950836,107680.0,107670.0,0.27704927]
[1751316085875,1.72150836,107680.0,107670.0,0.27804927]
[1751316087271,1.36070836,107680.0,107670.0,0.27804927]
[1751316087468,1.72150836,107680.0,107670.0,0.27804927]
[1751316088974,1.72150836,107680.0,107670.0,0.27904927]
[1751316090982,1.72150836,107680.0,107670.0,0.09332417]
[1751316091381,1.95869864,107680.0,107670.0,0.09332417]
[1751316091582,1.72150836,107680.0,107670.0,0.09332417]
[1751316092884,1.72150836,107680.0,107670.0,0.0655]
[1751316093081,1.2471278,107680.0,107670.0,0.2512251]
[1751316093384,1.72150836,107680.0,107670.0,0.2512251]
[1751316093987,1.72150836,107680.0,107670.0,0.0655]
[1751316095688,1.72150836,107680.0,107670.0,0.2512251]
[1751316095986,1.72150836,107680.0,107670.0,0.0655]
[1751316096288,1.72150836,107680.0,107670.0,0.09316987]
[1751316096486,1.72150836,107680.0,107670.0,0.27889497]
[1751316099391,1.72150836,107680.0,107670.0,0.30899497]
[1751316101589,1.72150836,107680.0,107670.0,0.12326987]
[1751316101793,1.72150836,107680.0,107670.0,0.30899497]
[1751316105896,1.72150836,107680.0,107670.0,0.12326987]
[1751316106091,1.72150836,107680.0,107670.0,0.30899497]
[1751316107096,1.77721798,107680.0,107670.0,0.30899497]
[1751316109201,1.72150836,107680.0,107670.0,0.30899497]
[1751316111596,1.36070836,107680.0,107670.0,0.30899497]
[1751316111800,1.72150836,107680.0,107670.0,0.30899497]
[1751316112500,1.2471278,107680.0,107670.0,0.30899497]
[1751316112701,1.72150836,107680.0,107670.0,0.30899497]
[1751316113396,1.72150836,107680.0,107670.0,0.33681914]
[1751316114898,1.2471278,107680.0,107670.0,0.33681914]
[1751316115099,1.72150836,107680.0,107670.0,0.33681914]
[1751316119610,1.15498836,107680.0,107670.0,0.33681914]
[1751316119908,1.72138836,107680.0,107670.0,0.33681914]
[1751316122707,0.76208836,107680.0,107670.0,0.57400942]
[1751316122907,0.7540678,107680.0,107670.0,0.94932847]
[1751316123215,0.99125808,107680.0,107670.0,0.94932847]
[1751316127413,0.99125808,107680.0,107670.0,0.94932777]
[1751316130419,1.22844836,107680.0,107670.0,0.94932777]
[1751316131519,1.22844836,107680.0,107670.0,0.97190569]
[1751316132018,1.32844836,107680.0,107670.0,0.97190569]
[1751316133322,1.32844836,107680.0,107670.0,0.93480942]
[1751316133522,1.32844836,107680.0,107670.0,0.97190569]
[1751316134125,1.32844836,107680.0,107670.0,0.93480942]
[1751316134833,1.32844836,107680.0,107670.0,0.97190569]
[1751316135634,1.32844836,107680.0,107670.0,0.93480942]
[1751316135831,1.32844836,107680.0,107670.0,0.97190569]
[1751316138135,1.09125808,107680.0,107670.0,0.97190569]
[1751316138336,1.32844836,107680.0,107670.0,0.97190569]
[1751316140132,1.68924836,107680.0,107670.0,0.57400942]
[1751316140630,1.32844836,107680.0,107670.0,0.97190569]
[1751316141340,1.32844836,107680.0,107670.0,0.73471541]
[1751316141530,1.32844836,107680.0,107670.0,0.33681914]
[1751316141732,1.36084836,107680.0,107670.0,0.33681914]
[1751316149232,1.72164836,107680.0,107670.0,0.33681914]
[1751316156050,1.72164836,107680.0,107670.0,0.57400942]
[1751316156250,1.72164836,107680.0,107670.0,0.33681914]
[1751316156550,1.72164836,107680.0,107670.0,0.57400942]
[1751316159052,1.36084836,107680.0,107670.0,0.57400942]
[1751316159354,1.72164836,107680.0,107670.0,0.57400942]
[1751316161455,1.48445808,107680.0,107670.0,0.57400942]
[1751316161652,1.72164836,107680.0,107670.0,0.57400942]
[1751316165258,1.36084836,107680.0,107670.0,0.57400942]
[1751316165455,1.72164836,107680.0,107670.0,0.61110569]
[1751316169359,1.72164836,107680.0,107670.0,0.37391541]
[1751316169559,1.72164836,107680.0,107670.0,0.61110569]
[1751316172163,1.48445808,107680.0,107670.0,0.61110569]
[1751316173669,1.72164836,107680.0,107670.0,0.61110569]
[1751316174064,1.36084836,107680.0,107670.0,0.61110569]
[1751316174260,1.72164836,107680.0,107670.0,0.61110569]
[1751316178660,1.48445808,107680.0,107670.0,0.61110569]
[1751316179668,1.72164836,107680.0,107670.0,0.61110569]
[1751316180569,1.72164836,107680.0,107670.0,0.37391541]
[1751316181264,1.72164836,107680.0,107670.0,0.61110569]
[1751316183769,1.72164836,107680.0,107670.0,0.37391541]
[1751316186972,1.72164836,107680.0,107670.0,0.61110569]
[1751316189376,1.72164836,107680.0,107670.0,0.37391541]
[1751316189572,1.72164836,107680.0,107670.0,0.61110569]
[1751316194680,1.68924836,107680.0,107670.0,0.51750569]
[1751316195379,1.68924836,107680.0,107670.0,0.28031541]
[1751316195579,1.72094836,107680.0,107670.0,0.58260569]
[1751316198180,1.36014836,107680.0,107670.0,0.58260569]
[1751316199180,1.36014836,107680.0,107670.0,0.54550942]
[1751316210683,1.36014836,107680.0,107670.0,0.30831914]
[1751316210884,1.36014836,107680.0,107670.0,0.54550942]
[1751316211185,1.36014836,107680.0,107670.0,0.30831914]
[1751316212887,1.36014836,107680.0,107670.0,0.32283819]
[1751316214093,0.8857678,107680.0,107670.0,0.56002847]
[1751316214291,1.36014836,107680.0,107670.0,0.59032847]
[1751316214793,1.36014836,107680.0,107670.0,0.35313819]